bitfinex/quotes_ETHUSD_20230703
["timestamp","ask_amount","ask_price","bid_price","bid_amount"]
[1688420312652,14.367875,1958.9,1958.6,0.48]
[1688420312848,0.254,1958.8,1958.6,0.48]
[1688420313078,5.10542,1958.7,1958.5,8.10583]
[1688420313287,10.21084,1958.7,1958.5,8.10583]
[1688420313506,10.21084,1958.7,1958.5,3.0]
[1688420313961,10.71084,1958.7,1958.5,3.0]
[1688420317326,13.26355,1958.7,1958.4,3.0]
[1688420317711,0.5,1958.7,1958.4,15.76546]
[1688420317884,5.60547,1958.7,1958.4,15.76546]
[1688420318196,5.60543,1958.7,1958.5,0.48]
[1688420318522,5.60543,1958.7,1958.6,5.10568]
[1688420318882,5.60543,1958.7,1958.6,4.10568]
[1688420321635,0.5,1958.7,1958.6,4.10568]
[1688420321854,0.5,1958.7,1958.6,4.58568]
[1688420322929,5.60542,1958.7,1958.6,0.48]
[1688420324811,10.71084,1958.7,1958.6,0.48]
[1688420325311,10.71084,1958.7,1958.5,0.48]
[1688420326830,5.60542,1958.7,1958.5,10.69186]
[1688420327217,0.5,1958.7,1958.5,10.69186]
[1688420327728,0.5,1958.7,1958.5,18.669065]
[1688420328663,0.5,1958.7,1958.5,21.222035]
[1688420331967,0.5,1958.7,1958.6,3.0]
[1688420332128,0.5,1958.7,1958.6,21.6122]
[1688420354876,0.5,1958.7,1958.6,19.05936]
[1688420355190,5.60542,1958.7,1958.6,8.848]
[1688420359397,5.60542,1958.7,1958.6,13.95368]
[1688420364072,5.60542,1958.7,1958.6,8.848]
[1688420365716,5.60542,1958.7,1958.5,0.41577365]
[1688420365717,14.334618,1958.7,1958.5,0.41577365]
[1688420365890,2.0,1958.3,1958.0,0.12876134]
[1688420366093,12.76682,1958.2,1957.8,0.53554817]
[1688420366321,1.276682,1958.1,1957.7,11.53434215]
[1688420366633,12.76822,1958.0,1957.7,5.64341817]
[1688420366795,10.2146,1958.0,1957.7,10.75144817]
[1688420366989,10.9686,1958.0,1957.7,10.75144817]
[1688420367420,10.9686,1958.0,1957.7,10.62887649]
[1688420368135,10.9686,1958.0,1957.8,3.0]
[1688420368297,12.4484802,1958.0,1957.8,8.10767]
[1688420368499,7.3411802,1958.0,1957.8,8.10767]
[1688420369198,7.3411802,1958.0,1957.8,13.21544]
[1688420370597,12.4484802,1958.0,1957.8,8.10767]
[1688420370797,12.4484802,1958.0,1957.8,3.0]
[1688420371239,0.254,1957.9,1957.8,3.0]
[1688420371439,5.36151,1957.9,1957.8,3.0]
[1688420371600,0.254,1957.9,1957.8,3.0]
[1688420371802,5.36151,1957.9,1957.8,3.0]
[1688420372230,5.36151,1957.9,1957.8,8.10777]
[1688420373726,5.86151,1957.9,1957.8,8.10777]
[1688420374261,0.5,1957.9,1957.8,8.10777]
[1688420374551,0.754,1957.9,1957.8,8.10777]
[1688420374849,0.5,1957.9,1957.8,8.10777]
[1688420375422,0.754,1957.9,1957.8,8.10777]
[1688420375749,0.5,1957.9,1957.8,13.69554]
[1688420376810,0.5,1957.9,1957.8,13.95577]
[1688420377045,0.5,1957.9,1957.8,19.06354]
[1688420377761,0.754,1957.9,1957.8,19.06354]
[1688420378251,0.754,1957.9,1957.8,13.95577]
[1688420378752,0.5,1957.9,1957.8,13.95577]
[1688420378929,0.754,1957.9,1957.8,13.95577]
[1688420380929,0.5,1957.9,1957.8,21.62232816]
[1688420381163,0.5,1957.9,1957.8,17.75473957]
[1688420381367,0.5,1957.9,1957.8,22.86250957]
[1688420381726,0.5,1957.9,1957.8,25.41638957]
[1688420386369,0.5,1957.9,1957.8,16.51455816]
[1688420386663,0.5,1957.9,1957.8,21.62232816]
[1688420387567,0.5,1957.9,1957.8,16.51455816]
[1688420387753,0.5,1957.9,1957.8,21.62232816]
[1688420398860,0.5,1957.9,1957.8,24.17620816]
[1688420411413,0.5,1957.9,1957.8,24.71175633]
[1688420417424,0.5,1957.9,1957.8,24.95913214]
[1688420427278,0.5,1957.9,1957.8,27.8589452]
[1688420427575,0.5,1957.9,1957.8,27.88738004]
[1688420428138,0.5,1957.9,1957.8,27.8589452]
[1688420428948,0.5,1957.9,1957.8,24.95913214]
[1688420432181,0.5,1957.9,1957.8,24.96472424]
[1688420438210,0.5,1957.9,1957.8,24.71815405]
[1688420439487,0.5,1957.9,1957.8,25.50107803]
[1688420439809,0.5,1957.9,1957.8,24.71815405]
[1688420441099,0.5,1957.9,1957.8,25.50107803]
[1688420441279,0.5,1957.9,1957.8,24.71815405]
[1688420441772,0.5,1957.9,1957.8,24.96472424]
[1688420444216,0.5,1957.9,1957.8,25.5010914]
[1688420446432,0.5,1957.9,1957.8,24.71816742]
[1688420446816,0.5,1957.9,1957.8,25.5010914]
[1688420447023,0.5,1957.9,1957.8,24.71816742]
[1688420455678,0.5,1957.9,1957.8,17.05651742]
[1688420455969,0.5,1957.9,1957.8,21.62792026]
[1688420456329,0.5,1957.9,1957.8,16.52015026]
[1688420456667,0.5,1957.9,1957.8,21.62792026]
[1688420457218,0.5,1957.9,1957.8,22.16428742]
[1688420458792,0.5,1957.9,1957.8,21.62792026]
[1688420461062,0.5,1957.9,1957.8,13.2211321]
[1688420461263,0.5,1957.9,1957.8,8.1133621]
[1688420461463,1.060743,1957.9,1957.8,8.1133621]
[1688420462069,6.168253,1957.9,1957.8,8.1133621]
[1688420462407,1.060743,1957.9,1957.8,8.1133621]
[1688420462712,0.5,1957.9,1957.8,13.4813621]
[1688420463002,0.5,1957.9,1957.8,19.0691321]
[1688420465005,0.5,1957.9,1957.8,13.9613621]
[1688420465306,0.5,1957.9,1957.8,8.8535921]
[1688420465478,0.5,1957.9,1957.8,3.4855921]
[1688420465678,1.596875,1957.9,1957.8,8.5933621]
[1688420465979,1.850875,1957.9,1957.8,13.7011321]
[1688420466412,1.850875,1957.9,1957.8,8.5933621]
[1688420467212,6.958385,1957.9,1957.8,8.5933621]
[1688420467737,1.850875,1957.9,1957.8,8.5933621]
[1688420468499,1.850875,1957.9,1957.8,3.4855921]
[1688420470910,6.958385,1957.9,1957.8,8.5933621]
[1688420472043,1.850875,1957.9,1957.8,8.5933621]
[1688420472449,6.958385,1957.9,1957.8,8.1133621]
[1688420475792,1.850875,1957.9,1957.8,8.1133621]
[1688420481206,1.850875,1957.9,1957.8,0.00577054]
[1688420481406,17.67843316,1957.9,1957.8,0.00577054]
[1688420481568,22.78594316,1957.9,1957.8,0.00577054]
[1688420481769,24.12017364,1957.9,1957.8,0.00577054]
[1688420482070,22.78594316,1957.9,1957.8,0.00577054]
[1688420482291,12.7717,1957.5,1957.1,1.00686292]
[1688420482535,10.21814,1957.3,1957.0,5.10985]
[1688420482740,12.77267,1957.3,1956.9,20.10407]
[1688420482933,5.1096,1957.1,1956.9,20.10419]
[1688420483167,10.2192,1957.1,1956.9,12.89968978]
[1688420483302,10.4732,1957.1,1957.0,0.00465608]
[1688420483504,11.775987,1957.1,1957.0,0.00465608]
[1688420484949,14.330787,1957.1,1957.0,0.00465608]
[1688420487206,14.330787,1957.1,1956.8,0.41670976]
[1688420487402,14.330787,1957.1,1956.6,7.22638]
[1688420487403,9.221187,1957.1,1956.6,7.22638]
[1688420487646,9.221187,1957.1,1956.7,0.48]
[1688420487647,0.254,1957.0,1956.7,0.48]
[1688420487955,10.22024,1956.9,1956.7,0.48]
[1688420488312,10.47424,1956.9,1956.8,0.00414299]
[1688420489548,10.97424,1956.9,1956.8,0.00414299]
[1688420489705,0.5,1956.9,1956.8,20.70688115]
[1688420489909,0.5,1956.9,1956.8,24.18688115]
[1688420490131,0.5,1956.9,1956.8,26.90909127]
[1688420490383,30.11,1957.4,1956.8,27.19310845]
[1688420490539,0.254,1957.5,1957.2,5.368]
[1688420490749,0.254,1957.5,1957.3,13.25267]
[1688420490951,0.254,1957.7,1957.5,12.77137]
[1688420491137,0.254,1957.7,1957.6,0.48]
[1688420491361,0.254,1957.7,1957.6,13.2547955]
[1688420491691,0.254,1957.9,1957.6,13.2547955]
[1688420491890,0.5,1957.7,1957.6,13.2547955]
[1688420492557,0.1007,1957.7,1957.6,21.63906631]
[1688420492772,0.1007,1957.7,1957.6,24.61924794]
[1688420492955,0.1007,1957.7,1957.6,27.1780361]
[1688420493794,0.1007,1957.7,1957.6,27.6780361]
[1688420494002,0.254,1958.4,1957.6,28.4982148]
[1688420494201,30.11,1958.7,1957.6,28.4982148]
[1688420494202,0.254,1958.7,1958.0,0.5]
[1688420494507,0.254,1958.9,1958.2,25.79481]
[1688420494807,0.254,1958.9,1958.4,18.133]
[1688420494984,0.254,1958.9,1958.6,12.76407]
[1688420495304,0.254,1959.1,1958.7,0.00398939]
[1688420495451,0.254,1959.1,1958.8,12.76277]
[1688420495653,0.754,1959.1,1958.8,12.76277]
[1688420495847,0.254,1959.0,1958.9,0.48]
[1688420496152,0.754,1959.1,1958.9,13.24225]
[1688420496360,0.5,1959.1,1958.9,18.61025]
[1688420496559,0.5,1959.1,1959.0,1.861025]
[1688420496767,0.5,1959.1,1959.0,15.102625]
[1688420497061,0.5,1959.1,1959.0,20.470625]
[1688420497267,0.4747,1959.1,1959.0,23.02941316]
[1688420497468,0.4747,1959.1,1959.0,26.05471304]
[1688420498006,0.4747,1959.1,1959.0,26.07097223]
[1688420499303,0.4747,1959.1,1959.0,26.07493635]
[1688420504574,2.3111352,1959.2,1959.1,18.67738305]
[1688420504778,1.90710914,1959.2,1959.1,29.45700884]
[1688420505511,1.85780914,1959.2,1959.1,29.46102073]
[1688420506209,2.35780914,1959.2,1959.1,29.46102073]
[1688420508204,2.20780914,1959.2,1959.1,29.46102073]
[1688420509303,2.20780914,1959.2,1959.1,28.71328102]
[1688420510694,1.80780914,1959.2,1959.1,28.71328102]
[1688420511185,1.80780914,1959.2,1959.1,23.7401831]
[1688420511415,1.80780914,1959.2,1959.1,20.7401831]
[1688420512095,1.80780914,1959.2,1959.1,21.17175005]
[1688420512907,1.80780914,1959.2,1959.1,24.17175005]
[1688420519137,1.80780914,1959.2,1959.1,24.19855228]
[1688420519454,1.80780914,1959.2,1959.1,24.17175005]
[1688420519808,1.80780914,1959.2,1959.1,24.20145548]
[1688420520009,1.70780914,1959.2,1959.1,24.17175005]
[1688420520210,1.70780914,1959.2,1959.1,24.20129205]
[1688420520426,1.70780914,1959.2,1959.1,26.90320828]
[1688420521058,1.70780914,1959.2,1959.1,8.58839189]
[1688420521353,6.81192914,1959.2,1959.1,0.00401189]
[1688420521517,7.06592914,1959.2,1959.1,0.00401189]
[1688420523537,12.17004914,1959.2,1959.1,0.00401189]
[1688420523737,13.38705405,1959.2,1959.1,0.00401189]
[1688420523951,15.93911405,1959.2,1959.1,0.00401189]
[1688420524350,15.93911405,1959.2,1958.9,5.10475]
[1688420524519,13.38705405,1959.2,1958.9,5.10475]
[1688420524721,0.254,1959.1,1958.9,10.20965]
[1688420525036,5.3584,1959.1,1958.9,10.20965]
[1688420525227,5.3584,1959.1,1959.0,0.00376829]
[1688420525429,5.6044,1959.1,1959.0,0.00376829]
[1688420525629,5.8584,1959.1,1959.0,0.00376829]
[1688420526623,7.1971334,1959.1,1959.0,0.00376829]
[1688420528359,12.3015334,1959.1,1959.0,0.00376829]
[1688420529322,12.3015334,1959.1,1958.8,10.61854858]
[1688420529574,0.254,1959.0,1958.8,10.61854858]
[1688420529867,5.35877,1959.0,1958.8,10.61854858]
[1688420530237,0.254,1958.9,1958.8,10.61854858]
[1688420530462,0.254,1958.9,1958.8,11.09854858]
[1688420531762,0.754,1958.9,1958.8,11.09854858]
[1688420532838,0.754,1958.9,1958.8,5.99350858]
[1688420533229,0.754,1958.9,1958.8,5.99729373]
[1688420535451,0.754,1958.9,1958.8,11.10245373]
[1688420538340,0.754,1958.9,1958.8,5.99729373]
[1688420544742,0.754,1958.9,1958.8,0.89229373]
[1688420544941,0.754,1958.9,1958.8,5.99745373]
[1688420545176,5.8589,1958.9,1958.8,5.99745373]
[1688420545382,0.754,1958.9,1958.8,5.99745373]
[1688420545537,5.8589,1958.9,1958.8,5.99745373]
[1688420545743,0.754,1958.9,1958.8,5.99745373]
[1688420546795,5.8589,1958.9,1958.8,0.89229373]
[1688420547445,12.060167,1958.9,1958.8,0.41229373]
[1688420547642,11.806167,1958.9,1958.8,0.41229373]
[1688420547884,6.701267,1958.9,1958.8,0.41229373]
[1688420548087,6.955267,1958.9,1958.8,0.41229373]
[1688420548441,12.060167,1958.9,1958.8,0.41229373]
[1688420548646,6.955267,1958.9,1958.8,0.41229373]
[1688420552890,12.060167,1958.9,1958.8,0.41229373]
[1688420562298,6.955267,1958.9,1958.8,0.41229373]
[1688420562500,7.7503342,1958.9,1958.8,0.41229373]
[1688420562703,12.8552342,1958.9,1958.8,0.41229373]
[1688420564510,13.92257587,1958.9,1958.8,0.41229373]
[1688420565231,12.8552342,1958.9,1958.8,0.41229373]
[1688420565439,7.7503342,1958.9,1958.8,0.41229373]
[1688420565849,12.8552342,1958.9,1958.8,0.41229373]
[1688420566644,13.92257587,1958.9,1958.8,0.41229373]
[1688420567343,7.72130887,1958.9,1958.8,0.41229373]
[1688420567543,6.6539672,1958.9,1958.8,0.41229373]
[1688420568746,6.6539672,1958.9,1958.8,5.51745373]
[1688420571339,1.5490672,1958.9,1958.8,5.50026092]
[1688420571548,1.5490672,1958.9,1958.8,10.60542092]
[1688420572447,0.754,1958.9,1958.8,14.47380901]
[1688420572720,0.754,1958.9,1958.8,14.95380901]
[1688420572876,0.5,1958.9,1958.8,14.95380901]
[1688420573032,0.5,1958.9,1958.8,14.98173554]
[1688420573526,0.5,1958.9,1958.8,14.95380901]
[1688420573938,0.5,1958.9,1958.8,14.98024256]
[1688420574142,0.5,1958.9,1958.8,14.95380901]
[1688420575873,0.5,1958.9,1958.8,14.98132596]
[1688420576035,0.5,1958.9,1958.8,14.95380901]
[1688420578773,0.5,1958.9,1958.8,14.97006986]
[1688420578975,0.5,1958.9,1958.8,17.97006986]
[1688420579139,0.5,1958.9,1958.8,17.99624884]
[1688420579333,0.5,1958.9,1958.8,17.97006986]
[1688420580643,0.5,1958.9,1958.8,17.99691157]
[1688420581778,0.5,1958.9,1958.8,25.89685802]
[1688420581980,0.5,1958.9,1958.8,26.19079096]
[1688420582139,0.5,1958.9,1958.8,26.16459773]
[1688420582552,0.5,1958.9,1958.8,26.74016396]
[1688420587079,0.5,1958.9,1958.8,26.70096489]
[1688420587375,1.20780914,1959.2,1958.8,26.7370916]
[1688420587579,1.20780914,1959.2,1959.1,15.31314]
[1688420587737,1.20780914,1959.2,1959.1,15.79314]
[1688420587937,1.20780914,1959.2,1959.1,18.79314]
[1688420588355,1.20780914,1959.2,1959.1,18.79664915]
[1688420589038,1.70780914,1959.2,1959.1,18.79664915]
[1688420589676,1.70780914,1959.2,1959.1,20.12233939]
[1688420593803,1.70780914,1959.2,1959.1,12.01795939]
[1688420594102,1.70780914,1959.2,1959.1,10.69226915]
[1688420594288,1.70780914,1959.2,1959.1,5.58788915]
[1688420597509,1.70780914,1959.2,1959.1,10.69226915]
[1688420598503,1.70780914,1959.2,1959.1,13.24445915]
[1688420600212,1.70780914,1959.2,1959.1,21.17124731]
[1688420600369,1.70780914,1959.2,1959.1,26.30122867]
[1688420600871,1.70780914,1959.2,1959.1,26.70646861]
[1688420601681,1.70780914,1959.2,1959.1,26.72272697]
[1688420612111,1.70780914,1959.2,1959.1,27.75780708]
[1688420624100,1.28690906,1959.2,1959.1,27.75780708]
[1688420624324,0.86513293,1959.2,1959.1,28.57839037]
[1688420624635,0.86513293,1959.2,1959.1,28.54073106]
[1688420627148,30.364,1959.7,1959.1,29.88049273]
[1688420627327,0.254,1959.7,1959.3,7.92678816]
[1688420627498,0.254,1959.7,1959.5,5.368]
[1688420627848,0.254,1959.7,1959.6,21.16448816]
[1688420628496,0.254,1959.7,1959.6,21.16795521]
[1688420628939,0.754,1959.7,1959.6,21.16795521]
[1688420629172,0.754,1959.7,1959.6,23.81900773]
[1688420629373,0.754,1959.7,1959.6,15.89221957]
[1688420629571,0.754,1959.7,1959.6,13.24116705]
[1688420637591,0.5,1959.7,1959.6,13.24116705]
[1688420637998,1.56734167,1959.7,1959.6,13.24116705]
[1688420638863,1.82134167,1959.7,1959.6,13.24116705]
[1688420639751,1.82134167,1959.7,1959.6,13.65603258]
[1688420639951,0.754,1959.7,1959.6,13.65603258]
[1688420641181,1.82134167,1959.7,1959.6,13.65603258]
[1688420642400,0.754,1959.7,1959.6,13.65603258]
[1688420643507,1.82134167,1959.7,1959.6,13.65603258]
[1688420643674,0.754,1959.7,1959.6,13.65603258]
[1688420644863,1.82134167,1959.7,1959.6,13.65603258]
[1688420645287,0.754,1959.7,1959.6,13.65603258]
[1688420647507,1.82134167,1959.7,1959.6,13.65603258]
[1688420649413,1.82134167,1959.7,1959.6,10.62449258]
[1688420649619,2.14689355,1959.7,1959.6,10.20962705]
[1688420649769,1.82134167,1959.7,1959.6,10.20962705]
[1688420650102,1.82134167,1959.7,1959.6,5.10308]
[1688420650326,0.754,1959.7,1959.6,10.20616]
[1688420650609,1.8249872,1959.7,1959.6,12.76090509]
[1688420651078,1.8249872,1959.7,1959.6,13.24090509]
[1688420652565,1.8249872,1959.7,1959.6,10.68936509]
[1688420654713,1.8249872,1959.7,1959.6,5.58628509]
[1688420655212,1.8249872,1959.7,1959.6,10.68936509]
[1688420655513,1.82264274,1959.7,1959.6,5.58628509]
[1688420656914,1.82264274,1959.7,1959.6,0.48320509]
[1688420657090,7.76184331,1959.7,1959.6,0.48320509]
[1688420657297,12.86466331,1959.7,1959.6,0.00320509]
[1688420658020,12.86466331,1959.7,1959.6,0.41551188]
[1688420658177,12.86466331,1959.7,1959.6,0.00320509]
[1688420658514,7.76184331,1959.7,1959.6,0.00320509]
[1688420659704,7.76184331,1959.7,1959.6,5.10628509]
[1688420660302,7.76115384,1959.7,1959.6,5.10628509]
[1688420660708,7.76115384,1959.7,1959.6,0.00320509]
[1688420660709,8.02945909,1959.7,1959.6,0.00320509]
[1688420660977,7.76086243,1959.7,1959.6,0.00320509]
[1688420661391,6.92448186,1959.7,1959.6,5.10628509]
[1688420661787,6.92448186,1959.7,1959.6,0.00320509]
[1688420663205,1.82166186,1959.7,1959.6,10.68936509]
[1688420663378,0.75165554,1959.7,1959.6,13.24090509]
[1688420665477,0.75165554,1959.7,1959.6,13.2377]
[1688420666420,0.75165554,1959.7,1959.6,13.24077384]
[1688420668435,0.75165554,1959.7,1959.6,15.799562]
[1688420668630,0.75165554,1959.7,1959.6,16.20361573]
[1688420673647,0.75165554,1959.7,1959.6,13.65207573]
[1688420674546,0.75165554,1959.7,1959.6,5.99020757]
[1688420674872,6.45152276,1959.7,1959.6,0.40712757]
[1688420675367,9.00293276,1959.7,1959.6,0.40712757]
[1688420675523,15.17575908,1959.7,1959.6,0.40712757]
[1688420680351,12.62434908,1959.7,1959.6,0.40712757]
[1688420687415,15.17575908,1959.7,1959.6,0.40712757]
[1688420688111,16.51436206,1959.7,1959.6,0.40712757]
[1688420688403,15.17575908,1959.7,1959.6,0.40712757]
[1688420691906,12.62434908,1959.7,1959.6,0.40712757]
[1688420692986,7.52152908,1959.7,1959.6,0.40712757]
[1688420693203,12.62434908,1959.7,1959.6,0.40712757]
[1688420694592,16.51436206,1959.7,1959.6,0.40712757]
[1688420694926,15.44435574,1959.7,1959.6,0.40712757]
[1688420695317,10.34153574,1959.7,1959.6,0.40712757]
[1688420695893,15.44435574,1959.7,1959.6,0.40712757]
[1688420697508,15.44435574,1959.7,1959.6,0.00307384]
[1688420698502,15.44435574,1959.7,1959.2,10.20788]
[1688420698806,10.20678,1959.5,1959.2,10.20788]
[1688420699195,10.46078,1959.5,1959.2,10.20788]
[1688420699537,10.46078,1959.5,1959.3,0.00309909]
[1688420699897,10.95843554,1959.5,1959.3,0.00309909]
[1688420700296,13.51010554,1959.5,1959.3,0.00309909]
[1688420700498,13.25610554,1959.5,1959.3,0.00309909]
[1688420700730,13.51010554,1959.5,1959.3,0.00309909]
[1688420700977,15.12253957,1959.5,1959.3,0.00309909]
[1688420701267,0.254,1959.4,1959.3,0.00309909]
[1688420701570,13.013,1959.4,1959.3,0.00309909]
[1688420702325,10.4612,1959.4,1959.3,0.00309909]
[1688420702530,13.013,1959.4,1959.3,0.00309909]
[1688420702725,14.63391455,1959.4,1959.3,0.00309909]
[1688420705463,14.63391455,1959.4,1959.2,0.41715215]
[1688420705838,0.254,1959.3,1958.9,1.7392]
[1688420706039,10.20834,1959.2,1958.9,1.7392]
[1688420706274,2.80595,1959.3,1959.0,10.20928]
[1688420706275,5.85569554,1959.3,1959.0,10.20928]
[1688420706579,5.85569554,1959.3,1959.0,10.21226582]
[1688420706749,0.75165554,1959.3,1959.1,0.48]
[1688420707078,0.49765554,1959.3,1959.2,10.20824]
[1688420707374,0.49765554,1959.3,1959.2,12.7603]
[1688420707572,0.49765554,1959.3,1959.2,12.76326898]
[1688420707867,0.75165554,1959.3,1959.2,12.76326898]
[1688420708236,0.49765554,1959.3,1959.2,12.76326898]
[1688420719288,0.49765554,1959.3,1959.2,13.17656668]
[1688420722298,10.70537554,1959.3,1959.2,0.41626668]
[1688420722503,14.86242309,1959.3,1959.2,0.41626668]
[1688420724101,12.31049309,1959.3,1959.2,0.41626668]
[1688420732409,12.31049309,1959.3,1959.2,0.4186525]
[1688420737622,7.20663309,1959.3,1959.2,0.4186525]
[1688420739431,2.10277309,1959.3,1959.2,0.4186525]
[1688420739575,2.10277309,1959.3,1959.2,5.5227725]
[1688420740224,7.20663309,1959.3,1959.2,0.4186525]
[1688420742524,2.10277309,1959.3,1959.2,5.5227725]
[1688420746613,0.75165554,1959.3,1959.2,5.5227725]
[1688420750497,5.85551554,1959.3,1959.2,5.5227725]
[1688420756057,5.85551554,1959.3,1959.2,0.4186525]
[1688420756458,10.95937554,1959.3,1959.2,0.4186525]
[1688420776753,12.02917471,1959.3,1959.2,0.4186525]
[1688420776940,13.75083448,1959.3,1959.2,0.0053548]
[1688420777529,16.30276448,1959.3,1959.2,0.0053548]
[1688420794605,14.58110471,1959.3,1959.2,0.0053548]
[1688420801596,14.58110471,1959.3,1959.0,0.40135293]
[1688420801928,0.254,1959.2,1958.9,6.9951]
[1688420802087,10.20876,1959.1,1958.9,6.9951]
[1688420802295,0.254,1959.0,1958.9,6.9951]
[1688420802507,5.35864,1959.0,1958.9,6.9951]
[1688420802726,0.254,1959.0,1958.9,8.2991]
[1688420802930,0.254,1959.0,1958.9,6.4089]
[1688420803141,0.75165554,1959.0,1958.9,6.4089]
[1688420803346,5.85629554,1959.0,1958.9,1.304]
[1688420803632,5.85629554,1959.0,1958.9,6.4089]
[1688420804448,0.75165554,1959.0,1958.9,6.4089]
[1688420804737,0.75165554,1959.0,1958.9,6.82313122]
[1688420805549,0.75165554,1959.0,1958.9,6.82810618]
[1688420808046,0.75165554,1959.0,1958.9,11.93300618]
[1688420810548,0.75165554,1959.0,1958.9,6.82810618]
[1688420811305,5.85629554,1959.0,1958.9,1.72320618]
[1688420811506,5.85629554,1959.0,1958.9,0.41920618]
[1688420812637,10.96093554,1959.0,1958.9,0.41920618]
[1688420813030,10.70693554,1959.0,1958.9,0.41920618]
[1688420813229,12.31225009,1959.0,1958.9,0.41920618]
[1688420813642,7.20761009,1959.0,1958.9,0.41920618]
[1688420814450,12.31225009,1959.0,1958.9,0.41920618]
[1688420814747,14.86457009,1959.0,1958.9,0.41920618]
[1688420817542,21.98668926,1959.0,1958.9,0.00497496]
[1688420817982,22.25549307,1959.0,1958.9,0.00497496]
[1688420818183,23.32694053,1959.0,1958.9,0.00497496]
[1688420818340,21.48833755,1959.0,1958.9,0.00497496]
[1688420818546,18.93601755,1959.0,1958.6,5.51074303]
[1688420818772,2.16385847,1958.9,1958.6,5.10559]
[1688420818970,10.21032,1958.8,1958.6,5.10559]
[1688420819281,0.254,1958.7,1958.6,5.10559]
[1688420819489,5.35942,1958.7,1958.5,13.68136]
[1688420819793,0.254,1958.7,1958.5,13.68136]
[1688420819963,0.254,1958.7,1958.5,16.23433]
[1688420820160,5.35949,1958.7,1958.5,13.68136]
[1688420821177,0.254,1958.6,1958.5,13.68136]
[1688420821549,0.254,1958.6,1958.5,11.50766]
[1688420821744,0.254,1958.6,1958.5,6.80601252]
[1688420821988,5.35968,1958.6,1958.5,1.70021252]
[1688420822674,5.35968,1958.6,1958.5,1.70533732]
[1688420822887,5.35968,1958.6,1958.5,6.81127732]
[1688420824578,0.254,1958.6,1958.5,6.81127732]
[1688420825604,0.254,1958.6,1958.5,5.51527732]
[1688420826107,0.75165554,1958.6,1958.5,5.51527732]
[1688420829506,0.49765554,1958.6,1958.5,11.92521732]
[1688420829667,0.75165554,1958.6,1958.5,11.92521732]
[1688420830108,0.49765554,1958.6,1958.5,11.92521732]
[1688420831712,0.49765554,1958.6,1958.5,14.47818732]
[1688420834701,0.49765554,1958.6,1958.5,13.17418732]
[1688420834976,0.49765554,1958.6,1958.5,10.62121732]
[1688420835668,0.49765554,1958.6,1958.5,0.40933732]
[1688420835669,13.51585554,1958.6,1958.5,0.40933732]
[1688420835917,12.31460109,1958.6,1958.5,0.0051248]
[1688420836409,14.86744109,1958.6,1958.5,0.0051248]
[1688420836609,14.86744109,1958.6,1958.2,11.51722]
[1688420836765,14.86744109,1958.6,1958.3,5.10636]
[1688420836969,0.254,1958.5,1958.3,5.10636]
[1688420837307,10.46615,1958.5,1958.3,5.10636]
[1688420837513,10.46615,1958.5,1958.4,0.0050177]
[1688420837679,12.1468631,1958.5,1958.4,0.0050177]
[1688420838016,7.2946831,1958.5,1958.4,5.1112177]
[1688420838868,12.4008631,1958.5,1958.4,0.0050177]
[1688420839512,12.4008631,1958.5,1958.2,5.50919699]
[1688420839865,5.36024,1958.4,1958.3,5.10641]
[1688420840516,5.36024,1958.4,1958.3,5.11155191]
[1688420844055,5.85789554,1958.4,1958.3,5.11155191]
[1688420845911,12.20422785,1958.4,1958.3,0.00514191]
[1688420848413,14.75732785,1958.4,1958.3,0.00514191]
[1688420851923,12.20422785,1958.4,1958.3,0.00514191]
[1688420854157,7.09798785,1958.4,1958.3,0.00514191]
[1688420854990,1.99174785,1958.4,1958.3,5.11160191]
[1688420855296,0.75165554,1958.4,1958.3,5.11160191]
[1688420860895,0.49765554,1958.4,1958.3,5.11160191]
[1688420861080,0.49765554,1958.4,1958.3,10.21806191]
[1688420861577,0.75165554,1958.4,1958.3,10.21806191]
[1688420861981,0.75165554,1958.4,1958.3,5.11160191]
[1688420862291,0.75165554,1958.4,1958.3,10.21806191]
[1688420863591,0.49765554,1958.4,1958.3,5.11160191]
[1688420863793,0.75165554,1958.4,1958.3,5.11160191]
[1688420864155,0.75165554,1958.4,1958.3,10.21806191]
[1688420864666,0.75165554,1958.4,1958.3,5.11160191]
[1688420865680,0.49765554,1958.4,1958.3,10.21806191]
[1688420866091,0.75165554,1958.4,1958.3,5.11160191]
[1688420867512,0.75165554,1958.4,1958.3,10.21806191]
[1688420868503,1.33741809,1958.4,1958.3,5.11160191]
[1688420869404,0.75165554,1958.4,1958.3,5.11160191]
[1688420878132,5.85785554,1958.4,1958.3,5.11160191]
[1688420878289,5.85785554,1958.4,1958.3,0.00514191]
[1688420880422,10.96405554,1958.4,1958.3,0.00514191]
[1688420889863,13.51715554,1958.4,1958.3,0.00514191]
[1688420890017,14.86887109,1958.4,1958.3,0.00514191]
[1688420890221,14.61487109,1958.4,1958.3,0.00514191]
[1688420894863,14.86887109,1958.4,1958.3,0.00514191]
[1688420895063,12.31577109,1958.4,1958.3,0.00514191]
[1688420895372,5.85785554,1958.4,1958.3,0.00514191]
[1688420898521,0.75165554,1958.4,1958.3,0.00514191]
[1688420900042,5.85785554,1958.4,1958.3,0.00514191]
[1688420900933,0.75165554,1958.4,1958.3,0.00514191]
[1688420901741,0.75165554,1958.4,1958.3,5.11160191]
[1688420901940,0.75165554,1958.4,1958.3,5.13807599]
[1688420902442,0.75165554,1958.4,1958.3,5.11160191]
[1688420902933,5.85785554,1958.4,1958.3,5.11160191]
[1688420903315,5.85785554,1958.4,1958.3,0.00514191]
[1688420906547,0.75165554,1958.4,1958.3,0.00514191]
[1688420911829,0.75165554,1958.4,1958.3,5.11160191]
[1688420912885,0.75165554,1958.4,1958.3,12.5841448]
[1688420913125,0.49765554,1958.4,1958.3,15.1373748]
[1688420913329,0.49765554,1958.4,1958.3,15.6173748]
[1688420914619,0.49765554,1958.4,1958.3,0.00514191]
[1688420914800,10.71005554,1958.4,1958.3,0.00514191]
[1688420914982,10.96405554,1958.4,1958.3,0.00514191]
[1688420915203,13.51715554,1958.4,1958.3,0.00514191]
[1688420915604,13.26315554,1958.4,1958.3,0.00514191]
[1688420919249,14.61487109,1958.4,1958.3,0.00514191]